fUSD/lending_fUSD_20250305
["ID","MTS","AMOUNT","RATE_DAILY","PERIOD"]
[355449452,1741176637846,-249.30141142,0.00010246,2]
[355449453,1741176637855,-150.0,0.00010252,2]
[355449454,1741176637865,-1000.0,0.0001027,2]
[355449455,1741176637874,-156.42,0.00010295,2]
[355449456,1741176637884,-165.39,0.00010299,2]
[355449457,1741176637894,-605.37,0.00010318,2]
[355449458,1741176637903,-156.42,0.00010397,2]
[355449459,1741176637914,-435.15931696,0.0001048,2]
[355449460,1741176637925,-1356.55,0.0001048,2]
[355449461,1741176638034,-0.56068304,0.0001048,2]
[355449462,1741176638043,-111.47491884,0.00010499,2]
[355449463,1741176638067,-44.94508116,0.00010499,2]
[355449464,1741176638077,-156.42,0.00010601,2]
[355449465,1741176638086,-156.42,0.00010703,2]
[355449466,1741176638096,-156.42,0.00010805,2]
[355449467,1741176638106,-156.42,0.00010907,2]
[355449468,1741176638115,-150.0,0.00010996,2]
[355449469,1741176638125,-416.992325,0.00010997,2]
[355449470,1741176638135,-416.992325,0.00010997,2]
[355449471,1741176638144,-156.42,0.00011009,2]
[355449472,1741176638153,-155.0260463,0.00011032,2]
[355449474,1741176638163,-569.93179638,0.00011056,2]
[355449476,1741176638173,-14526.15380449,0.00011146,2]
[355449478,1741176638186,-1488.00414557,0.00011146,2]
[355449482,1741176638238,-17886.17977392,0.00011146,2]
[355449483,1741176638249,-10894.01546877,0.00011146,2]
[355449486,1741176639923,-191.28528264,0.00011099,2]
[355449487,1741176639933,-170.37564559,0.00011146,2]
[355449488,1741176639946,-45293.49999998,0.00011146,2]
[355449489,1741176639958,-7887.81851593,0.00011146,2]
[355449490,1741176639970,-1161.33140907,0.00011146,2]
[355449491,1741176640002,-1787.55805162,0.00011146,2]
[355449492,1741176640215,-1504.02127916,0.00011146,2]
[355449493,1741176640403,-10764.35388749,0.00011146,2]
[355449494,1741176640414,-30296.0759532,0.00011146,2]
[355449507,1741176642920,-20042.725,0.00011146,2]
[355449508,1741176642972,-6055.11608069,0.00011146,2]
[355449509,1741176642983,-90700.17827719,0.00011146,2]
[355449510,1741176643029,-5019.5790246,0.00011146,2]
[355449511,1741176643038,-1342.67,0.00011149,2]
[355449512,1741176643048,-1224.58,0.00011149,2]
[355449513,1741176643057,-500.0,0.00011149,2]
[355449514,1741176643066,-500.0,0.00011149,2]
[355449515,1741176643075,-943.73,0.00011149,2]
[355449516,1741176643085,-155.7441087,0.00011149,2]
[355449517,1741176643094,-500.0,0.00011149,2]
[355449518,1741176643103,-402.20137317,0.00011149,2]
[355449519,1741176643113,-500.0,0.00011149,2]
[355449520,1741176643122,-2068.18,0.00011149,2]
[355449521,1741176643131,-2346.87,0.00011149,2]
[355449522,1741176643140,-775.29,0.00011149,2]
[355449523,1741176643149,-1450.35,0.00011149,2]
[355449524,1741176643158,-1291.41,0.00011149,2]
[355449525,1741176643167,-1934.46,0.00011149,2]
[355449526,1741176643176,-1387.05,0.00011149,2]
[355449527,1741176643185,-20438.92,0.00011149,2]
[355449528,1741176643194,-1290.82,0.00011149,2]
[355449529,1741176643204,-1813.41,0.00011149,2]
[355449530,1741176643213,-564.33,0.00011149,2]
[355449531,1741176643231,-500.0,0.00011149,2]
[355449532,1741176643242,-556.41,0.00011149,2]
[355449533,1741176643251,-1048.72,0.00011149,2]
[355449534,1741176643260,-681.66,0.00011149,2]
[355449535,1741176643269,-755.24,0.00011149,2]
[355449536,1741176643279,-614.14,0.00011149,2]
[355449537,1741176643288,-39646.17008501,0.0001115,2]
[355449538,1741176643301,-2920.47,0.0001115,2]
[355449539,1741176644241,-13464.82944859,0.0001115,2]
[355449540,1741176644250,-40124.65730995,0.0001115,2]
[355449541,1741176644268,-1199.91475883,0.0001115,2]
[355449542,1741176644280,-120022.24436663,0.0001115,2]
[355449545,1741176645827,-191.28528263,0.00011111,2]
[355449546,1741176645838,-2083.15608538,0.0001115,2]
[355449547,1741176645882,-22545.5625134,0.0001115,2]
[355449548,1741176645894,-48459.36409331,0.0001115,2]
[355449549,1741176645906,-34436.59401,0.0001115,2]
[355449550,1741176645920,-1447.60063062,0.0001115,2]
[355449551,1741176645938,-8481.63125903,0.0001115,2]
[355449552,1741176645951,-957.28164627,0.0001115,2]
[355449554,1741176646216,-9599.76522505,0.0001115,2]
[355449559,1741176646258,-336.61,0.0001115,2]
[355449561,1741176646270,-1475.33808343,0.0001115,2]
[355449563,1741176646282,-435.489995,0.0001115,2]
[355449566,1741176646298,-38235.07818096,0.0001115,2]
[355449568,1741176646310,-3694.74631588,0.0001115,2]
[355449571,1741176646322,-9357.67768317,0.0001115,2]
[355449578,1741176736423,672.564913,0.000201,120]
[355449579,1741176803732,250.0,0.00010071,2]
[355449580,1741176834832,177.25,8.184e-05,2]
[355449581,1741176841145,1000.0,0.00010229,2]
[355449582,1741176850366,438.3622724,0.00011155,7]
[355449583,1741176850401,61.6377276,0.00011155,7]
[355449584,1741176851810,209.38,0.00010244,2]
[355449585,1741176919733,165.39,0.00010226,2]
[355449586,1741176920521,1101.39,0.00010226,2]
[355449587,1741176989776,700.33,0.00010229,2]
[355449588,1741176989801,10000.0,0.00010229,2]
[355449589,1741176989825,10000.0,0.00010229,2]
[355449590,1741176989848,3199.67,0.00010229,2]
[355449591,1741177014978,2000.0,0.00010181,2]
[355449592,1741177069149,180.23,0.00010192,2]
[355449593,1741177098812,602.23,0.00010221,2]
[355449594,1741177100546,930.18,0.00010221,2]
[355449595,1741177110813,1061.0,0.00010244,2]
[355449596,1741177131960,1061.0,0.00010244,2]
[355449597,1741177165502,150.0,0.00010191,7]
[355449599,1741177402818,586.38,0.00010158,2]
[355449600,1741177450958,266.8,0.000101,2]
[355449601,1741177510170,112.51,0.0001019,2]
[355449602,1741177510193,611.26,0.0001019,2]
[355449604,1741177706715,200.0,0.0001018,2]
[355449621,1741177806006,250.0,0.00010142,2]
[355449632,1741177832266,-395.39999862,0.00010494,2]
[355449633,1741177832277,-665.60000138,0.00010494,2]
[355449634,1741177832288,-150.0,0.00010499,2]
[355449635,1741177832298,-250.0,0.00010505,2]
[355449636,1741177832308,-550.0,0.00010509,2]
[355449637,1741177832318,-169.36,0.00010552,2]
[355449638,1741177832328,-300.0,0.00010949,2]
[355449639,1741177832338,-22245.03999862,0.0001095,2]
[355449640,1741177832350,-6099.9999999,0.0001095,2]
[355449641,1741177832362,-1654.96000148,0.0001095,2]
[355449642,1741177832372,-150.0,0.00010959,2]
[355449643,1741177832382,-550.0,0.00011,2]
[355449644,1741177832392,-155.0260463,0.00011032,2]
[355449645,1741177832402,-1061.0,0.00011046,2]
[355449646,1741177832412,-690.0101,0.00011048,2]
[355449647,1741177832421,-316.38017735,0.00011049,2]
[355449648,1741177832431,-302.62367487,0.00011049,2]
[355449649,1741177832443,-226.51632513,0.00011049,2]
[355449650,1741177832452,-158.17267395,0.0001105,2]
[355449651,1741177832463,-379.95453092,0.0001105,2]
[355449652,1741177832472,-2186.05944992,0.0001105,2]
[355449653,1741177832507,-1685.96821208,0.0001105,2]
[355449654,1741177832518,-200.0,0.00011069,2]
[355449655,1741177832527,-155.33313985,0.00011099,2]
[355449656,1741177832538,-155.33313983,0.00011106,2]
[355449657,1741177832548,-150.0,0.00011145,2]
[355449658,1741177832558,-333.19304824,0.00011146,2]
[355449661,1741177832581,-425.96195175,0.00011146,2]
[355449663,1741177832591,-493.03804825,0.00011146,2]
[355449666,1741177832610,-1180.71440125,0.00011146,2]
[355449668,1741177832622,-2073.52890149,0.00011146,2]
[355449670,1741177832634,-1048.4,0.00011146,2]
[355449822,1741177837986,-613.13166476,0.00010888,2]
[355449823,1741177837996,-155.85666798,0.0001114,2]
[355449824,1741177838006,-1259.4347297,0.00011146,2]
[355449825,1741177838016,-1000.0,0.00011147,2]
[355449826,1741177838026,-500.0,0.00011147,2]
[355449827,1741177838036,-500.0,0.00011147,2]
[355449828,1741177838045,-1081.08,0.00011147,2]
[355449829,1741177838054,-966.33,0.00011147,2]
[355449830,1741177838063,-561.9,0.00011147,2]
[355449831,1741177838073,-500.0,0.00011147,2]
[355449832,1741177838082,-723.77,0.00011148,2]
[355449833,1741177838091,-932.76,0.00011148,2]
[355449834,1741177838100,-740.29,0.00011148,2]
[355449835,1741177838110,-500.0,0.00011148,2]
[355449836,1741177838119,-1120.53,0.00011148,2]
[355449837,1741177838128,-693.54,0.00011148,2]
[355449838,1741177838138,-1145.22,0.00011148,2]
[355449839,1741177838147,-624.32,0.00011148,2]
[355449840,1741177838156,-500.0,0.00011148,2]
[355449841,1741177838165,-882.16,0.00011148,2]
[355449842,1741177838174,-644.83,0.00011148,2]
[355449843,1741177838184,-838.62,0.00011148,2]
[355449844,1741177838193,-559.33,0.00011148,2]
[355449845,1741177838202,-662.66,0.00011148,2]
[355449846,1741177838212,-1115.49,0.00011148,2]
[355449847,1741177838221,-500.0,0.00011148,2]
[355449848,1741177838230,-506.92,0.00011148,2]
[355449849,1741177838240,-500.0,0.00011148,2]
[355449850,1741177838249,-935.81,0.00011148,2]
[355449851,1741177838258,-594.6563779,0.00011148,2]
[355449852,1741177838269,-642.94737769,0.00011148,2]
[355449853,1741177838278,-511.77,0.00011148,2]
[355449854,1741177838287,-500.0,0.00011148,2]
[355449855,1741177838297,-604.59,0.00011148,2]
[355449856,1741177838307,-1065.42,0.00011148,2]
[355449857,1741177838316,-500.0,0.00011148,2]
[355449858,1741177838325,-864.73,0.00011148,2]
[355449859,1741177838334,-500.0,0.00011148,2]
[355449860,1741177838343,-584.27,0.00011148,2]
[355449861,1741177838353,-1445.75,0.00011148,2]
[355449862,1741177838362,-500.0,0.00011148,2]
[355449863,1741177838371,-500.82,0.00011148,2]
[355449864,1741177838380,-1219.28,0.00011148,2]
[355449865,1741177838389,-1635.33,0.00011148,2]
[355449866,1741177838398,-953.13,0.00011148,2]
[355449867,1741177838407,-507.71,0.00011148,2]
[355449868,1741177838416,-500.0,0.00011148,2]
[355449869,1741177838425,-522.32,0.00011148,2]
[355449870,1741177838435,-779.52,0.00011148,2]
[355449871,1741177838444,-500.0,0.00011148,2]
[355449872,1741177838454,-500.0,0.00011148,2]
[355449873,1741177838464,-1712.02,0.00011148,2]
[355449874,1741177838474,-500.0,0.00011148,2]
[355449875,1741177838483,-580.65,0.00011148,2]
[355449876,1741177838493,-736.47,0.00011148,2]
[355449877,1741177838502,-529.49,0.00011148,2]
[355449878,1741177838511,-574.1,0.00011148,2]
[355449879,1741177838522,-1829.27,0.00011148,2]
[355449880,1741177838531,-566.47,0.00011148,2]
[355449881,1741177838541,-569.37,0.00011148,2]
[355449882,1741177838550,-1252.66,0.00011148,2]
[355449883,1741177838559,-683.77,0.00011148,2]
[355449884,1741177838569,-500.0,0.00011148,2]
[355449885,1741177838579,-1043.56,0.00011148,2]
[355449886,1741177838588,-1576.54,0.00011148,2]
[355449887,1741177838597,-887.26,0.00011148,2]
[355449888,1741177838606,-500.0,0.00011148,2]
[355449889,1741177838615,-926.51,0.00011148,2]
[355449890,1741177838624,-1241.54,0.00011148,2]
[355449891,1741177838634,-1775.69,0.00011148,2]
[355449892,1741177838643,-283.833042,0.00011148,2]
[355449893,1741177838653,-2382.94,0.00011148,2]
[355449894,1741177838662,-657.13,0.00011148,2]
[355449895,1741177838672,-1432.02,0.00011148,2]
[355449896,1741177838681,-157.114531,0.00011148,2]
[355449897,1741177838690,-1551.91,0.00011148,2]
[355449898,1741177838699,-2340.36,0.00011148,2]
[355449899,1741177838709,-1375.03,0.00011148,2]
[355449900,1741177838719,-659.28,0.00011148,2]
[355449901,1741177838728,-1466.87,0.00011148,2]
[355449902,1741177838737,-1268.56,0.00011148,2]
[355449903,1741177838747,-1990.47,0.00011148,2]
[355449904,1741177838756,-3459.84,0.00011148,2]
[355449905,1741177838770,-2076.26,0.00011148,2]
[355449906,1741177838779,-1630.82,0.00011148,2]
[355449907,1741177838789,-5828.83,0.00011148,2]
[355449908,1741177838799,-5230.64,0.00011148,2]
[355449909,1741177838809,-1392.38,0.00011148,2]
[355449910,1741177838819,-1781.82,0.00011148,2]
[355449911,1741177838828,-1259.49,0.00011148,2]
[355449912,1741177838838,-2284.8,0.00011148,2]
[355449913,1741177838848,-836.6,0.00011148,2]
[355449914,1741177838857,-7030.85,0.00011148,2]
[355449915,1741177838867,-6808.75,0.00011148,2]
[355449916,1741177838877,-922.84,0.00011148,2]
[355449917,1741177838886,-6416.11,0.00011148,2]
[355449918,1741177838895,-500.0,0.00011148,2]
[355449919,1741177838904,-647.46,0.00011148,2]
[355449920,1741177838914,-1749.22,0.00011148,2]
[355449921,1741177838923,-530.43,0.00011148,2]
[355449922,1741177838932,-1286.72,0.00011148,2]
[355449923,1741177838942,-1562.15,0.00011148,2]
[355449924,1741177838951,-3415.83,0.00011148,2]
[355449925,1741177838961,-1709.89,0.00011148,2]
[355449926,1741177838972,-2035.57,0.00011148,2]
[355449927,1741177838981,-1194.39,0.00011148,2]
[355449928,1741177838991,-2879.21,0.00011148,2]
[355449929,1741177839001,-1631.64,0.00011148,2]
[355449930,1741177839011,-925.24,0.00011148,2]
[355449931,1741177839021,-945.53,0.00011148,2]
[355449932,1741177839030,-4244.87,0.00011148,2]
[355449933,1741177839039,-2009.4,0.00011148,2]
[355449934,1741177839049,-991.04,0.00011148,2]
[355449935,1741177839058,-6708.47,0.00011148,2]
[355449936,1741177839068,-3769.52,0.00011148,2]
[355449937,1741177839077,-2574.51,0.00011148,2]
[355449938,1741177839086,-2277.07,0.00011148,2]
[355449939,1741177839096,-500.0,0.00011148,2]
[355449940,1741177839105,-912.89,0.00011148,2]
[355449941,1741177839115,-2133.26,0.00011148,2]
[355449942,1741177839124,-2369.13,0.00011148,2]
[355449943,1741177839134,-1730.98,0.00011148,2]
[355449944,1741177839144,-2508.74,0.00011148,2]
[355449945,1741177839153,-748.64,0.00011148,2]
[355449946,1741177839163,-2379.72,0.00011148,2]
[355449947,1741177839172,-1559.97,0.00011148,2]
[355449948,1741177839182,-662.81,0.00011148,2]
[355449949,1741177839191,-4160.91,0.00011148,2]
[355449950,1741177839202,-500.0,0.00011148,2]
[355449951,1741177839212,-2017.61,0.00011148,2]
[355449952,1741177839222,-1389.91,0.00011148,2]
[355449953,1741177839232,-501.8,0.00011148,2]
[355449954,1741177839242,-4681.68,0.00011148,2]
[355449955,1741177839252,-2711.83,0.00011148,2]
[355449956,1741177839261,-6848.37,0.00011148,2]
[355449957,1741177839272,-4373.89,0.00011148,2]
[355449958,1741177839282,-3746.84,0.00011148,2]
[355449959,1741177839291,-2029.72,0.00011148,2]
[355449960,1741177839301,-1309.55,0.00011148,2]
[355449961,1741177839311,-1394.3,0.00011148,2]
[355449962,1741177839321,-1584.79,0.00011148,2]
[355449963,1741177839330,-3147.47,0.00011148,2]
[355449964,1741177839340,-8622.23,0.00011148,2]
[355449965,1741177839349,-2243.88,0.00011148,2]
[355449966,1741177839359,-2170.37,0.00011148,2]
[355449967,1741177839368,-783.83,0.00011148,2]
[355449968,1741177839378,-1150.59,0.00011148,2]
[355449969,1741177839388,-12305.69,0.00011148,2]
[355449970,1741177839398,-2192.88,0.00011148,2]
[355449971,1741177839408,-20594.35,0.00011148,2]
[355449972,1741177839417,-1236.76,0.00011148,2]
[355449973,1741177839427,-1304.57,0.00011148,2]
[355449974,1741177839438,-1296.03,0.00011148,2]
[355449975,1741177839448,-2328.48,0.00011148,2]
[355449976,1741177839459,-1004.16,0.00011148,2]
[355449977,1741177839468,-500.0,0.00011148,2]
[355449978,1741177839478,-309.02087609,0.00011148,2]
[355449979,1741177839488,-500.0,0.00011149,2]
[355449980,1741177839498,-543.86,0.00011149,2]
[355449981,1741177839507,-500.0,0.00011149,2]
[355449982,1741177839517,-560.07,0.00011149,2]
[355449983,1741177839527,-500.0,0.00011149,2]
[355449984,1741177839538,-500.0,0.00011149,2]
[355449985,1741177839547,-500.0,0.00011149,2]
[355449986,1741177839557,-500.0,0.00011149,2]
[355449987,1741177839567,-668.13,0.00011149,2]
[355449988,1741177839577,-500.0,0.00011149,2]
[355449989,1741177839587,-500.0,0.00011149,2]
[355449990,1741177839596,-623.42,0.00011149,2]
[355449991,1741177839606,-500.0,0.00011149,2]
[355449992,1741177839615,-1325.14,0.00011149,2]
[355449993,1741177839624,-500.0,0.00011149,2]
[355449994,1741177839634,-500.0,0.00011149,2]
[355449995,1741177839643,-500.0,0.00011149,2]
[355449996,1741177839653,-582.94,0.00011149,2]
[355449997,1741177839662,-500.0,0.00011149,2]
[355449998,1741177839672,-500.0,0.00011149,2]
[355449999,1741177839683,-702.54,0.00011149,2]
[355450000,1741177839693,-500.0,0.00011149,2]
[355450001,1741177839702,-500.0,0.00011149,2]
[355450002,1741177839713,-500.0,0.00011149,2]
[355450003,1741177839723,-668.23,0.00011149,2]
[355450004,1741177839733,-500.0,0.00011149,2]
[355450005,1741177839742,-500.0,0.00011149,2]
[355450006,1741177839751,-500.0,0.00011149,2]
[355450007,1741177839762,-632.38,0.00011149,2]
[355450008,1741177839773,-500.0,0.00011149,2]
[355450009,1741177839784,-573.13,0.00011149,2]
[355450010,1741177839794,-500.0,0.00011149,2]
[355450011,1741177839804,-581.18828173,0.00011149,2]
[355450012,1741177839815,-500.0,0.00011149,2]
[355450013,1741177839827,-500.0,0.00011149,2]
[355450014,1741177839837,-531.27984255,0.00011149,2]
[355450015,1741177839846,-561.11,0.00011149,2]
[355450017,1741177839858,-500.0,0.00011149,2]
[355450019,1741177839868,-500.0,0.00011149,2]
[355450020,1741177839879,-662.11,0.00011149,2]
[355450021,1741177839889,-500.0,0.00011149,2]
[355450022,1741177839900,-238.0890054,0.00011149,2]
[355450023,1741177839910,-500.0,0.00011149,2]
[355450024,1741177839920,-500.0,0.00011149,2]
[355450025,1741177839930,-749.82,0.00011149,2]
[355450026,1741177839939,-500.0,0.00011149,2]
[355450027,1741177839950,-565.45,0.00011149,2]
[355450028,1741177839959,-500.0,0.00011149,2]
[355450029,1741177839968,-668.98,0.00011149,2]
[355450030,1741177839977,-598.48,0.00011149,2]
[355450031,1741177839987,-1039.19,0.00011149,2]
[355450032,1741177839997,-724.12,0.00011149,2]
[355450033,1741177840007,-1246.73,0.00011149,2]
[355450034,1741177840017,-752.92,0.00011149,2]
[355450035,1741177840027,-500.0,0.00011149,2]
[355450036,1741177840037,-1300.2,0.00011149,2]
[355450037,1741177840046,-500.0,0.00011149,2]
[355450038,1741177840055,-923.41,0.00011149,2]
[355450039,1741177840065,-500.0,0.00011149,2]
[355450040,1741177840074,-500.0,0.00011149,2]
[355450041,1741177840084,-524.26112603,0.00011149,2]
[355450042,1741177840094,-1952.11,0.00011149,2]
[355450043,1741177840103,-500.0,0.00011149,2]
[355450044,1741177840114,-500.0,0.00011149,2]
[355450045,1741177840124,-780.95,0.00011149,2]
[355450046,1741177840134,-2238.74,0.00011149,2]
[355450047,1741177840143,-1413.41,0.00011149,2]
[355450048,1741177840153,-1980.11,0.00011149,2]
[355450050,1741177840164,-500.0,0.00011149,2]
[355450052,1741177840173,-500.0,0.00011149,2]
[355450054,1741177840183,-594.86542469,0.00011149,2]
[355450056,1741177840192,-722.98,0.00011149,2]
[355450058,1741177840201,-500.0,0.00011149,2]
[355450060,1741177840211,-500.0,0.00011149,2]
[355450061,1741177840222,-1799.29,0.00011149,2]
[355450062,1741177840232,-2491.32,0.00011149,2]
[355450063,1741177840242,-500.0,0.00011149,2]
[355450064,1741177840251,-858.81,0.00011149,2]
[355450065,1741177840261,-1211.71,0.00011149,2]
[355450066,1741177840272,-690.61,0.00011149,2]
[355450067,1741177840282,-500.0,0.00011149,2]
[355450068,1741177840291,-763.72,0.00011149,2]
[355450069,1741177840302,-1401.55,0.00011149,2]
[355450070,1741177840311,-500.0,0.00011149,2]
[355450071,1741177840321,-500.0,0.00011149,2]
[355450072,1741177840331,-1384.03,0.00011149,2]
[355450073,1741177840342,-550.933966,0.00011149,2]
[355450074,1741177840351,-643.01,0.00011149,2]
[355450075,1741177840361,-1432.24,0.00011149,2]
[355450076,1741177840372,-500.0,0.00011149,2]
[355450077,1741177840381,-962.75,0.00011149,2]
[355450078,1741177840391,-642.18,0.00011149,2]
[355450079,1741177840400,-4928.99,0.00011149,2]
[355450080,1741177840410,-965.55,0.00011149,2]
[355450081,1741177840419,-751.72,0.00011149,2]
[355450082,1741177840429,-1057.52,0.00011149,2]
[355450083,1741177840439,-1158.07,0.00011149,2]
[355450084,1741177840449,-1467.87,0.00011149,2]
[355450085,1741177840458,-830.14,0.00011149,2]
[355450086,1741177840468,-1908.0,0.00011149,2]
[355450087,1741177840477,-500.0,0.00011149,2]
[355450088,1741177840487,-753.24,0.00011149,2]
[355450089,1741177840496,-500.0,0.00011149,2]
[355450090,1741177840506,-1188.99,0.00011149,2]
[355450091,1741177840515,-801.15,0.00011149,2]
[355450092,1741177840773,-976.34,0.00011149,2]
[355450093,1741177840783,-553.64228886,0.00011149,2]
[355450094,1741177840793,-500.0,0.00011149,2]
[355450095,1741177840802,-500.0,0.00011149,2]
[355450096,1741177840815,-500.0,0.00011149,2]
[355450097,1741177840825,-237.15053091,0.00011149,2]
[355450098,1741177840835,-500.0,0.00011149,2]
[355450099,1741177840844,-849.23,0.00011149,2]
[355450100,1741177840854,-967.56,0.00011149,2]
[355450101,1741177840865,-500.0,0.00011149,2]
[355450102,1741177840875,-500.0,0.00011149,2]
[355450103,1741177840885,-500.0,0.00011149,2]
[355450104,1741177840894,-500.0,0.00011149,2]
[355450105,1741177840904,-703.87,0.00011149,2]
[355450106,1741177840914,-1256.08,0.00011149,2]
[355450107,1741177840924,-4842.98,0.00011149,2]
[355450108,1741177840933,-500.0,0.00011149,2]
[355450109,1741177840943,-500.0,0.00011149,2]
[355450110,1741177840953,-633.32,0.00011149,2]
[355450111,1741177840963,-625.47,0.00011149,2]
[355450112,1741177840972,-34393.77,0.00011149,2]
[355450113,1741177840984,-1832.11,0.00011149,2]
[355450114,1741177840993,-500.0,0.00011149,2]
[355450115,1741177841003,-1098.13,0.00011149,2]
[355450116,1741177841012,-500.0,0.00011149,2]
[355450117,1741177841025,-500.0,0.00011149,2]
[355450118,1741177841035,-1249.88,0.00011149,2]
[355450119,1741177841045,-634.22,0.00011149,2]
[355450120,1741177841055,-1901.74,0.00011149,2]
[355450121,1741177841065,-543.98906605,0.00011149,2]
[355450122,1741177841075,-500.0,0.00011149,2]
[355450123,1741177841085,-500.0,0.00011149,2]
[355450124,1741177841094,-1046.16,0.00011149,2]
[355450125,1741177841105,-605.36,0.00011149,2]
[355450126,1741177841114,-1388.53,0.00011149,2]
[355450127,1741177841125,-500.0,0.00011149,2]
[355450128,1741177841135,-2070.91,0.00011149,2]
[355450129,1741177841145,-3553.09,0.00011149,2]
[355450130,1741177841155,-1615.91,0.00011149,2]
[355450131,1741177841165,-6995.13,0.00011149,2]
[355450132,1741177841175,-1565.97,0.00011149,2]
[355450133,1741177841184,-500.0,0.00011149,2]
[355450134,1741177841193,-352.77594456,0.00011149,2]
[355450135,1741177841203,-500.0,0.00011149,2]
[355450136,1741177841212,-1628.94,0.00011149,2]
[355450137,1741177841222,-2303.26,0.00011149,2]
[355450138,1741177841231,-500.0,0.00011149,2]
[355450139,1741177841241,-519.21181552,0.00011149,2]
[355450140,1741177841250,-1049.61,0.00011149,2]
[355450141,1741177841259,-5302.49,0.00011149,2]
[355450142,1741177841270,-1478.39,0.00011149,2]
[355450143,1741177841279,-500.0,0.00011149,2]
[355450144,1741177841289,-1152.41,0.00011149,2]
[355450145,1741177841298,-502.4688613,0.00011149,2]
[355450146,1741177841308,-896.49,0.00011149,2]
[355450147,1741177841317,-5835.84,0.00011149,2]
[355450148,1741177841327,-655.24,0.00011149,2]
[355450149,1741177841336,-1010.65,0.00011149,2]
[355450150,1741177841346,-766.11,0.00011149,2]
[355450151,1741177841355,-945.17,0.00011149,2]
[355450152,1741177841365,-500.0,0.00011149,2]
[355450153,1741177841375,-551.01474882,0.00011149,2]
[355450154,1741177841385,-500.0,0.00011149,2]
[355450155,1741177841395,-719.75,0.00011149,2]
[355450156,1741177841404,-5093.97,0.00011149,2]
[355450157,1741177841414,-500.0,0.00011149,2]
[355450158,1741177841423,-620.05,0.00011149,2]
[355450159,1741177841433,-500.0,0.00011149,2]
[355450160,1741177841443,-790.37,0.00011149,2]
[355450161,1741177841452,-500.0,0.00011149,2]
[355450162,1741177841462,-500.0,0.00011149,2]
[355450163,1741177841471,-500.0,0.00011149,2]
[355450164,1741177841480,-500.0,0.00011149,2]
[355450165,1741177841490,-658.46,0.00011149,2]
[355450166,1741177841500,-660.89,0.00011149,2]
[355450167,1741177841510,-519.33304342,0.00011149,2]
[355450168,1741177841521,-1287.84,0.00011149,2]
[355450169,1741177841531,-3046.64,0.00011149,2]
[355450170,1741177841541,-500.0,0.00011149,2]
[355450171,1741177841550,-500.0,0.00011149,2]
[355450172,1741177841559,-500.0,0.00011149,2]
[355450173,1741177841569,-835.99,0.00011149,2]
[355450174,1741177841579,-1648.35,0.00011149,2]
[355450175,1741177841588,-1235.87,0.00011149,2]
[355450176,1741177841598,-500.0,0.00011149,2]
[355450177,1741177841608,-940.08,0.00011149,2]
[355450178,1741177841618,-6911.04,0.00011149,2]
[355450179,1741177841628,-659.28,0.00011149,2]
[355450180,1741177841638,-659.28,0.00011149,2]
[355450181,1741177841648,-659.28,0.00011149,2]
[355450182,1741177841657,-659.28,0.00011149,2]
[355450183,1741177841667,-659.28,0.00011149,2]
[355450184,1741177841677,-772.41,0.00011149,2]
[355450185,1741177841687,-659.28,0.00011149,2]